Workbook

Sheet nos ref
B1: nos L1 | C1: nos L2 | D1: nos L3 | E1: 35S L1 | F1: 35S L2 | G1: 35S L3 | H1: DFRgX H1 | I1: DFRgX H2 | J1: DFRgX H3 | K1: DFRg1 H1 | L1: DFRg1 H2 | M1: DFRg1 H3 | N1: P1.2g1 L1 | O1: P1.2g1 L2 | P1: P1.2g1 L3 | Q1: P1.2gX L1 | R1: P1.2gX L2 | S1: P1.2gX L3 | T1: P1.3g1 L1 | U1: P1.3g1 L2 | V1: P1.3g1 L3 | W1: P1.3gX L1 | X1: P1.3gX L2 | Y1: P1.3gX L3 | Z1: P1.4g1 L1 | AA1: P1.4g1 L2 | AB1: P1.4g1 L3 | AC1: P1.4gX L1 | AD1: P1.4gX L2 | AE1: P1.4gX L3 | AF1: P2.1g1 L1 | AG1: P2.1g1 L2 | AH1: P2.1g1 L3 | AI1: P2.1gX L1 | AJ1: P2.1gX L2 | AK1: P2.1gX L3 | AL1: P1.7.1g1 L1 | AM1: P1.7.1g1 L2 | AN1: P1.7.1g1 L3 | AO1: P1.7.1gX L1 | AP1: P1.7.1gX L2 | AQ1: P1.7.1gX L3
A2: Luc_Run1 | B2: 39037000 | C2: 44352500 | D2: 57299000 | E2: 575853000 | F2: 543656000 | G2: 553557000 | H2: =AVERAGE(I2:J2) -> 8936.845 | I2: 8435.42 | J2: 9438.27 | K2: 4544770 | L2: 7546920 | M2: 5384360 | N2: 16860700 | O2: 43800300 | P2: 48004700 | Q2: 844165 | R2: 638281 | S2: 804659 | T2: 67341300 | U2: 45778400 | V2: 38282900 | W2: 417562 | X2: 476967 | Y2: 448014 | Z2: 13954800 | AA2: 54531900 | AB2: 53256100 | AC2: =AVERAGE(W2,Q2) -> 630863.5 | AD2: =AVERAGE(X2,R2) -> 557624 | AE2: 626336.5 | AF2: 103683000 | AG2: 140970000 | AH2: 147196000 | AI2: 1756620 | AJ2: 2180740 | AK2: 1904450 | AL2: 33871700 | AM2: 31836600 | AN2: 60671900 | AO2: 237970 | AP2: 376159 | AQ2: 683043
A3: Luc_Run2 | B3: 24457500 | C3: 28793300 | D3: 37207200 | E3: 300610000 | F3: 285453000 | G3: 296991000 | H3: =AVERAGE(I3:J3) -> 5758.395 | I3: 5388.69 | J3: 6128.1 | K3: 3013590 | L3: 4952220 | M3: 3569020 | N3: 10519100 | O3: 27695100 | P3: 30633100 | Q3: 540452 | R3: 410031 | S3: 517949 | T3: 43102100 | U3: 29191200 | V3: 24424300 | W3: 266587 | X3: 305030 | Y3: 286149 | Z3: 8720260 | AA3: 33989100 | AB3: 33272500 | AC3: =AVERAGE(W3,Q3) -> 403519.5 | AD3: 357530.5 | AE3: 402049 | AF3: 66407100 | AG3: 90759000 | AH3: 94282500 | AI3: 1078360 | AJ3: 1398170 | AK3: 1181560 | AL3: 20602800 | AM3: 19555800 | AN3: 37736700 | AO3: 145378 | AP3: 232134 | AQ3: 420640
A4: Luc_Run3 | B4: 15549200 | C4: 18385400 | D4: 23728200 | E4: 178243000 | F4: 172113000 | G4: 179684000 | H4: 3646.69 | I4: 3386.35 | J4: 3907.03 | K4: 1884790 | L4: 3088510 | M4: 2253080 | N4: 6713540 | O4: 17328500 | P4: 19476300 | Q4: 336553 | R4: 259173 | S4: 327049 | T4: 27942700 | U4: 18608000 | V4: 15559200 | W4: 169601 | X4: 191763 | Y4: 179705 | Z4: 5521320 | AA4: 21729700 | AB4: 21194800 | AC4: 253077 | AD4: 225468 | AE4: 253377 | AF4: 43811100 | AG4: 61655100 | AH4: 64080800 | AI4: 659002 | AJ4: 890425 | AK4: 734386 | AL4: 12947300 | AM4: 12272200 | AN4: 24224600 | AO4: 90166.5 | AP4: 144874 | AQ4: 260005
A5: Luc_Mean | B5: =AVERAGE(B2:B4) -> 26347900 | C5: =AVERAGE(C2:C4) -> 30510400 | D5: 39411466.67 | E5: 351568666.7 | F5: 333740666.7 | G5: 343410666.7 | H5: =AVERAGE(H2:H4) -> 6113.976667 | I5: 5736.82 | J5: 6491.133333 | K5: 3147716.667 | L5: 5195883.333 | M5: 3735486.667 | N5: 11364446.67 | O5: 29607966.67 | P5: 32704700 | Q5: 573723.3333 | R5: 435828.3333 | S5: 549885.6667 | T5: 46128700 | U5: 31192533.33 | V5: 26088800 | W5: 284583.3333 | X5: 324586.6667 | Y5: 304622.6667 | Z5: 9398793.333 | AA5: 36750233.33 | AB5: 35907800 | AC5: 429153.3333 | AD5: 380207.5 | AE5: 427254.1667 | AF5: 71300400 | AG5: 97794700 | AH5: 101853100 | AI5: 1164660.667 | AJ5: 1489778.333 | AK5: 1273465.333 | AL5: 22473933.33 | AM5: 21221533.33 | AN5: 40877733.33 | AO5: 157838.1667 | AP5: 251055.6667 | AQ5: 454562.6667
A6: Ren_Run1 | B6: 250648000 | C6: 290683000 | D6: 416901000 | E6: 174438000 | F6: 168972000 | G6: 165253000 | H6: =AVERAGE(I6:J6) -> 2845955 | I6: 2722080 | J6: 2969830 | K6: 4002720 | L6: 4188680 | M6: 3620150 | N6: 107562000 | O6: 155763000 | P6: 153947000 | Q6: 214505000 | R6: 165268000 | S6: 211343000 | T6: 248431000 | U6: 169658000 | V6: 224324000 | W6: 193390000 | X6: 203429000 | Y6: 159646000 | Z6: 50670500 | AA6: 72945200 | AB6: 62134600 | AC6: =AVERAGE(Q6,W6) -> 203947500 | AD6: =AVERAGE(R6,X6) -> 184348500 | AE6: 185494500 | AF6: 209484000 | AG6: 175577000 | AH6: 173972000 | AI6: 153669000 | AJ6: 194225000 | AK6: 155947000 | AL6: 155354000 | AM6: 156755000 | AN6: 161274000 | AO6: 80173100 | AP6: 132242000 | AQ6: 137837000
A7: Ren_Run2 | B7: 120073000 | C7: 129510000 | D7: 170924000 | E7: 89518400 | F7: 87053100 | G7: 85473400 | H7: =AVERAGE(I7:J7) -> 1418420 | I7: 1357150 | J7: 1479690 | K7: 1982560 | L7: 2040690 | M7: 1760230 | N7: 54645100 | O7: 79535900 | P7: 79406900 | Q7: 105647000 | R7: 84492400 | S7: 107535000 | T7: 120425000 | U7: 88561100 | V7: 110475000 | W7: 99620000 | X7: 102518000 | Y7: 84765000 | Z7: 25926200 | AA7: 37779800 | AB7: 31636400 | AC7: =AVERAGE(Q7,W7) -> 102633500 | AD7: 93505200 | AE7: 96150000 | AF7: 116827000 | AG7: 92606600 | AH7: 91943900 | AI7: 82845000 | AJ7: 102666000 | AK7: 77528100 | AL7: 76623100 | AM7: 76896200 | AN7: 78888600 | AO7: 38978200 | AP7: 67041100 | AQ7: 69509600
A8: Ren_Run3 | B8: 76682900 | C8: 83287100 | D8: 106006000 | E8: 55959500 | F8: 53628100 | G8: 52750600 | H8: 876347 | I8: 838047 | J8: 914647 | K8: 1197770 | L8: 1198000 | M8: 1042700 | N8: 34123700 | O8: 49173300 | P8: 49386700 | Q8: 67213700 | R8: 52603400 | S8: 67767400 | T8: 77598100 | U8: 56053400 | V8: 70178000 | W8: 64145900 | X8: 64679500 | Y8: 53991700 | Z8: 16421400 | AA8: 23756100 | AB8: 19615000 | AC8: 65679800 | AD8: 58641450 | AE8: 60879550 | AF8: 76300200 | AG8: 59274700 | AH8: 58952400 | AI8: 53074300 | AJ8: 67124600 | AK8: 46977800 | AL8: 47511000 | AM8: 47310700 | AN8: 47884500 | AO8: 23686500 | AP8: 41702900 | AQ8: 43003100
A9: Ren_Mean | B9: =AVERAGE(B6:B8) -> 149134633.3 | C9: =AVERAGE(C6:C8) -> 167826700 | D9: 231277000 | E9: 106638633.3 | F9: 103217733.3 | G9: 101159000 | H9: =AVERAGE(H6:H8) -> 1713574 | I9: 1639092.333 | J9: 1788055.667 | K9: 2394350 | L9: 2475790 | M9: 2141026.667 | N9: 65443600 | O9: 94824066.67 | P9: 94246866.67 | Q9: 129121900 | R9: 100787933.3 | S9: 128881800 | T9: 148818033.3 | U9: 104757500 | V9: 134992333.3 | W9: 119051966.7 | X9: 123542166.7 | Y9: 99467566.67 | Z9: 31006033.33 | AA9: 44827033.33 | AB9: 37795333.33 | AC9: 124086933.3 | AD9: 112165050 | AE9: 114174683.3 | AF9: 134203733.3 | AG9: 109152766.7 | AH9: 108289433.3 | AI9: 96529433.33 | AJ9: 121338533.3 | AK9: 93484300 | AL9: 93162700 | AM9: 93653966.67 | AN9: 96015700 | AO9: 47612600 | AP9: 80328666.67 | AQ9: 83449900
A10: Ratio Luc/Ren (Leaf) | B10: =B5/B9 -> 0.1766719065 | C10: =C5/C9 -> 0.1817970561 | D10: 0.1704080677 | E10: 3.296822696 | F10: 3.233365584 | G10: 3.394761382 | H10: =H5/H9 -> 0.00356796769 | I10: 0.003499998068 | J10: 0.003630274747 | K10: 1.314643501 | L10: 2.098676921 | M10: 1.744717488 | N10: 0.1736525293 | O10: 0.3122410555 | P10: 0.3470110058 | Q10: 0.004443268983 | R10: 0.00432421143 | S10: 0.004266588973 | T10: 0.3099671388 | U10: 0.2977594285 | V10: 0.1932613457 | W10: 0.002390412702 | X10: 0.002627335066 | Y10: 0.003062532611 | Z10: 0.3031278859 | AA10: 0.8198230086 | AB10: 0.9500590902 | AC10: 0.003458489317 | AD10: 0.003389714532 | AE10: 0.003742109496 | AF10: 0.531284773 | AG10: 0.8959433919 | AH10: 0.9405636069 | AI10: 0.01206534242 | AJ10: 0.01227786666 | AK10: 0.01362223746 | AL10: 0.2412331688 | AM10: 0.2265951362 | AN10: 0.425740096 | AO10: 0.003315050358 | AP10: 0.00312535583 | AQ10: 0.005447132551
A11: Mean ratios (sample) | B11: =AVERAGE(B10:D10) -> 0.1762923434 | E11: =AVERAGE(E10:G10) -> 3.308316554 | H11: =AVERAGE(H10:J10) -> 0.003566080168 | K11: =AVERAGE(K10:M10) -> 1.71934597 | N11: =AVERAGE(N10:P10) -> 0.2776348636 | Q11: =AVERAGE(Q10:S10) -> 0.004344689795 | T11: =AVERAGE(T10:V10) -> 0.266995971 | W11: =AVERAGE(W10:Y10) -> 0.002693426793 | Z11: =AVERAGE(Z10:AB10) -> 0.6910033282 | AC11: =AVERAGE(AC10:AE10) -> 0.003530104448 | AF11: =AVERAGE(AF10:AH10) -> 0.7892639239 | AI11: =AVERAGE(AI10:AK10) -> 0.01265514885 | AL11: =AVERAGE(AL10:AN10) -> 0.2978561337 | AO11: =AVERAGE(AO10:AQ10) -> 0.003962512913
A12: Ratio Luc/Ren (Leaf)/Media Luc/Ren (Pnos) | B12: =B10/$B$11 -> 1.002153032 | C12: =C10/$B$11 -> 1.031224911 | D12: 0.9666220571 | E12: 18.70088418 | F12: 18.34093031 | G12: 19.2564312 | H12: =H10/$B$11 -> 0.02023892598 | I12: 0.01985337536 | J12: 0.02059235629 | K12: 7.457178658 | L12: 11.90452676 | M12: 9.896728658 | N12: 0.9850259286 | O12: 1.771154943 | P12: 1.968383873 | Q12: 0.02520398162 | R12: 0.02452864002 | S12: 0.02420178262 | T12: 1.758256387 | U12: 1.689009419 | V12: 1.096254902 | W12: 0.01355936767 | X12: 0.01490328516 | Y12: 0.01737189802 | Z12: 1.719461435 | AA12: 4.65036083 | AB12: 5.38911147 | AC12: 0.01961792129 | AD12: 0.01922780347 | AE12: 0.02122672728 | AF12: 3.01365767 | AG12: 5.082145795 | AH12: 5.335249328 | AI12: 0.06843940119 | AJ12: 0.06964492288 | AK12: 0.07727072653 | AL12: 1.368370084 | AM12: 1.285337365 | AN12: 2.414966457 | AO12: 0.01880427869 | AP12: 0.0177282562 | AQ12: 0.0308982934
A13: EstDev | B13: =STDEV(B12:D12) -> 0.03235519796 | E13: =STDEV(E12:G12) -> 0.461219609 | H13: =STDEV(H12:J12) -> 0.0003696067889 | K13: =STDEV(K12:M12) -> 2.227164214 | N13: =STDEV(N12:P12) -> 0.5202388756 | Q13: =STDEV(Q12:S12) -> 0.0005110976547 | T13: =STDEV(T12:V12) -> 0.3638678848 | W13: =STDEV(W12:Y12) -> 0.001933716253 | Z13: =STDEV(Z12:AB12) -> 1.940887046 | AC13: =STDEV(AC12:AE12) -> 0.001059571065 | AF13: =STDEV(AF12:AH12) -> 1.273609853 | AI13: =STDEV(AI12:AK12) -> 0.004788849396 | AL13: =STDEV(AL12:AN12) -> 0.6295924984 | AO13: =STDEV(AO12:AQ12) -> 0.007312921166
A14: Luc/Ren(sample)/Luc/Ren(Pnos) | B14: =B11/$B$11 -> 1 | E14: =E11/$B$11 -> 18.76608189 | H14: =H11/$B$11 -> 0.02022821921 | K14: =K11/$B$11 -> 9.75281136 | N14: =N11/$B$11 -> 1.574854915 | Q14: =Q11/$B$11 -> 0.02464480142 | T14: =T11/$B$11 -> 1.514506903 | W14: =W11/$B$11 -> 0.01527818362 | Z14: =Z11/$B$11 -> 3.919644579 | AC14: =AC11/$B$11 -> 0.02002415068 | AF14: =AF11/$B$11 -> 4.477017598 | AI14: =AI11/$B$11 -> 0.07178501686 | AL14: =AL11/$B$11 -> 1.689557969 | AO14: =AO11/$B$11 -> 0.02247694276
